{"text_format":"3","workbook":"xlsx","n_sheets":1,"sheets":["RELATÓRIO DE DESPESAS"],"not_rendered":{"defined_names":4},"read":"whole","date_system":"1900"}

{"sheet":"RELATÓRIO DE DESPESAS","index":0,"n_rows":22,"n_cols":12,"rows_kept":22,"merged":[[1,2,1,3],[1,5,1,6],[3,2,3,3],[3,6,3,7],[3,10,3,11],[4,2,4,3],[4,6,4,7],[4,10,4,11],[20,2,20,4],[20,6,20,8],[21,2,21,4],[21,6,21,8]]}
[null,"RELATÓRIO DE DESPESAS",{"$nulls":8},"Somente para uso do escritório"]
[null,"FINALIDADE:",null,null,"NÚMERO DA DECLARAÇÃO:",null,null,"PERÍODO DE PAGAMENTO","DE:",{"$f":"IF(COUNTA(DadosDespesas[Data])=0,\"\",MIN(DadosDespesas[Data]))","v":""},"PARA:",{"$f":"IF(COUNTA(DadosDespesas[Data])=0,\"\",MAX(DadosDespesas[Data]))","v":""}]
[null,"INFORMAÇÕES DE FUNCIONÁRIOS:"]
[null,"NOME",{"$nulls":3},"CARGO",{"$nulls":3},"CPF"]
[null,"DEPARTAMENTO",{"$nulls":3},"GERENTE",{"$nulls":3},"ID DO FUNCIONÁRIO"]
[]
[null,"Data","Conta","Descrição","Hotel","Transporte","Combustível","Refeições","Telefone","Entretenimento","Diversos","Total"]
[{"$nulls":11},{"$f":"SUM(DadosDespesas[[#This Row],[Hotel]:[Diversos]])","v":{"v":0,"d":"R$ 0.00"}}]
[{"$nulls":11},{"$f":"SUM(DadosDespesas[[#This Row],[Hotel]:[Diversos]])","v":{"v":0,"d":"R$ 0.00"}}]
[{"$nulls":11},{"$f":"SUM(DadosDespesas[[#This Row],[Hotel]:[Diversos]])","v":{"v":0,"d":"R$ 0.00"}}]
[{"$nulls":11},{"$f":"SUM(DadosDespesas[[#This Row],[Hotel]:[Diversos]])","v":{"v":0,"d":"R$ 0.00"}}]
[{"$nulls":11},{"$f":"SUM(DadosDespesas[[#This Row],[Hotel]:[Diversos]])","v":{"v":0,"d":"R$ 0.00"}}]
[{"$nulls":11},{"$f":"SUM(DadosDespesas[[#This Row],[Hotel]:[Diversos]])","v":{"v":0,"d":"R$ 0.00"}}]
[{"$nulls":11},{"$f":"SUM(DadosDespesas[[#This Row],[Hotel]:[Diversos]])","v":{"v":0,"d":"R$ 0.00"}}]
[{"$nulls":11},{"$f":"SUM(DadosDespesas[[#This Row],[Hotel]:[Diversos]])","v":{"v":0,"d":"R$ 0.00"}}]
[{"$nulls":11},{"$f":"SUM(DadosDespesas[[#This Row],[Hotel]:[Diversos]])","v":{"v":0,"d":"R$ 0.00"}}]
[{"$nulls":11},{"$f":"SUM(DadosDespesas[[#This Row],[Hotel]:[Diversos]])","v":{"v":0,"d":"R$ 0.00"}}]
[{"$nulls":11},{"$f":"SUM(DadosDespesas[[#This Row],[Hotel]:[Diversos]])","v":{"v":0,"d":"R$ 0.00"}}]
[null,"Total",null,null,{"$f":"SUBTOTAL(109,DadosDespesas[Hotel])","v":{"v":0,"d":"R$ 0.00"}},{"$f":"SUBTOTAL(109,DadosDespesas[Transporte])","v":{"v":0,"d":"R$ 0.00"}},{"$f":"SUBTOTAL(109,DadosDespesas[Combustível])","v":{"v":0,"d":"R$ 0.00"}},{"$f":"SUBTOTAL(109,DadosDespesas[Refeições])","v":{"v":0,"d":"R$ 0.00"}},{"$f":"SUBTOTAL(109,DadosDespesas[Telefone])","v":{"v":0,"d":"R$ 0.00"}},{"$f":"SUBTOTAL(109,DadosDespesas[Entretenimento])","v":{"v":0,"d":"R$ 0.00"}},{"$f":"SUBTOTAL(109,DadosDespesas[Diversos])","v":{"v":0,"d":"R$ 0.00"}},{"$f":"SUBTOTAL(109,DadosDespesas[Total])","v":{"v":0,"d":"R$ 0.00"}}]
[{"$nulls":10},"SUBTOTAL",{"$f":"DadosDespesas[[#Totals],[Total]]","v":{"v":0,"d":"R$ 0.00"}}]
[null,"APROVADO:",{"$nulls":3},"ANOTAÇÕES: ",{"$nulls":4},"ADIANTAMENTOS",{"v":0,"d":"R$ 0.00"}]
[{"$nulls":10},"TOTAL",{"$f":"Subtotal-Adiantamentos","v":{"v":0,"d":"R$ 0.00"}}]